bitfinex-derivatives/quotes_ETHF0:USTF0_20260306
["timestamp","ask_amount","ask_price","bid_price","bid_amount"]
[1772810777811,0.25084,1993.2,1991.8,5.80815722]
[1772810778014,0.82836912,1993.1,1991.8,5.80815722]
[1772810778711,0.25084,1993.2,1991.8,5.80815722]
[1772810779112,0.25084,1993.2,1991.7,0.25102]
[1772810779113,0.00540014,1993.3,1992.2,5.80815722]
[1772810779519,0.00540014,1993.3,1992.4,5.80815722]
[1772810779711,3.43668049,1993.9,1992.4,5.80815722]
[1772810780018,0.94717033,1993.8,1992.4,5.80815722]
[1772810780214,0.25079,1993.6,1992.4,5.80815722]
[1772810780415,0.69641033,1993.5,1992.4,5.80815722]
[1772810780719,0.7019521,1993.5,1992.4,5.80815722]
[1772810781015,0.93849172,1993.0,1992.4,5.80815722]
[1772810781415,0.67709596,1992.7,1991.9,5.80815722]
[1772810781816,0.25091,1992.6,1991.9,5.80815722]
[1772810782120,0.93912298,1992.4,1991.5,5.80815722]
[1772810782312,7.51312298,1992.4,1991.5,5.80815722]
[1772810782516,0.67767032,1992.1,1991.4,5.81448426]
[1772810782814,0.93606601,1992.7,1991.4,5.81448426]
[1772810783014,0.25092,1992.5,1991.4,5.81448426]
[1772810783214,0.68516601,1992.4,1991.4,5.81448426]
[1772810783410,0.25092,1992.5,1991.4,5.81448426]
[1772810783615,0.67510617,1992.9,1991.4,5.81448426]
[1772810783817,0.00445623,1992.9,1991.5,5.80815722]
[1772810784316,0.65733049,1993.2,1991.9,5.80815722]
[1772810784620,0.25082,1993.3,1991.9,5.80815722]
[1772810785222,0.25437378,1993.3,1991.9,5.80815722]
[1772810786022,0.73608438,1993.2,1991.9,5.80815722]
[1772810786222,0.25437378,1993.3,1991.9,5.80815722]
[1772810786621,0.98000006,1993.3,1991.9,5.80815722]
[1772810787125,0.72699707,1993.2,1991.9,5.80815722]
[1772810787822,0.96733973,1993.1,1991.9,5.80815722]
[1772810788421,0.25087,1992.9,1991.9,5.80815722]
[1772810788623,1.09037672,1992.9,1991.9,5.80815722]
[1772810790327,1.08224754,1992.5,1991.9,5.80815722]
[1772810790824,0.25092,1992.5,1991.9,5.80815722]
[1772810791416,0.82220551,1992.4,1991.7,5.80815722]
[1772810791825,0.25092,1992.5,1991.7,5.80815722]
[1772810792921,0.25095,1992.3,1991.7,5.80815722]
[1772810793121,0.25097,1992.1,1991.4,5.60282251]
[1772810794529,6.575,1992.4,1991.4,5.60282251]
[1772810795625,0.25092,1992.5,1991.4,5.60282251]
[1772810795828,6.576,1992.6,1991.4,5.60282251]
[1772810796027,0.25087,1992.9,1991.4,5.60282251]
[1772810796230,6.82687,1992.9,1991.4,5.60282251]
[1772810796428,7.60991815,1992.9,1991.4,5.60282251]
[1772810797027,0.77401394,1992.4,1991.4,5.60282251]
[1772810797432,6.82693,1992.5,1991.4,5.60282251]
[1772810797634,6.576,1992.5,1991.4,5.60282251]
[1772810798027,0.76375871,1992.8,1991.4,5.60282251]
[1772810798229,7.33975871,1992.8,1991.4,5.60282251]
[1772810798432,0.2509,1992.7,1991.4,5.60282251]
[1772810798631,0.25092,1992.5,1991.4,5.60282251]
[1772810798829,0.83502237,1992.4,1991.4,5.60282251]
[1772810799029,7.41102237,1992.4,1991.4,5.60282251]
[1772810799329,0.25095,1992.3,1991.4,5.60282251]
[1772810799531,1.07691342,1992.3,1991.4,5.60282251]
[1772810799824,6.82695,1992.3,1991.4,5.60282251]
[1772810800225,7.92484575,1992.3,1991.4,5.60282251]
[1772810800427,1.08778596,1992.2,1991.4,5.60282251]
[1772810800627,6.82695,1992.3,1991.4,5.60282251]
[1772810800628,1.33875596,1992.1,1991.4,5.60282251]
[1772810801030,1.33875596,1992.1,1991.4,0.00632704]
[1772810801826,1.08778596,1992.1,1991.4,7.04e-06]
[1772810802028,0.25103,1991.7,1991.4,7.04e-06]
[1772810802936,0.25733074,1991.7,1991.4,7.04e-06]
[1772810803141,0.00630074,1991.7,1991.4,5.4780536]
[1772810804236,6.577,1991.9,1991.4,5.4780536]
[1772810804541,6.577,1992.1,1991.4,5.4780536]
[1772810805040,7.82414192,1992.1,1991.4,5.4780536]
[1772810805239,7.83019981,1992.1,1991.4,5.4780536]
[1772810805440,1.25319981,1992.1,1991.4,5.4780536]
[1772810805641,6.577,1992.0,1991.4,5.4780536]
[1772810806037,7.81428697,1992.0,1991.4,7.04e-06]
[1772810806935,0.34584469,1992.1,1991.4,7.04e-06]
[1772810806936,0.00605789,1992.1,1991.4,7.04e-06]
[1772810808339,1.47790529,1992.0,1991.4,7.04e-06]
[1772810809140,6.578,1991.9,1991.4,7.04e-06]
[1772810809332,0.00605789,1992.1,1991.4,7.04e-06]
[1772810809532,6.58405789,1992.1,1991.4,7.04e-06]
[1772810809937,7.77209188,1992.1,1991.4,7.04e-06]
[1772810810135,1.18803399,1992.0,1991.4,7.04e-06]
[1772810810533,1.42903006,1991.9,1991.4,7.04e-06]
[1772810810740,0.251,1991.9,1991.4,7.04e-06]
[1772810810935,6.829,1991.9,1991.4,7.04e-06]
[1772810811339,0.251,1991.9,1991.4,7.04e-06]
[1772810811542,7.74679047,1992.0,1991.4,7.04e-06]
[1772810811740,6.578,1991.9,1991.4,7.04e-06]
[1772810812646,4.21525687,1991.9,1991.4,7.04e-06]
[1772810813241,3.7548949,1992.0,1991.4,7.04e-06]
[1772810813446,0.25101,1991.8,1991.4,7.04e-06]
[1772810814246,3.91775431,1991.8,1991.4,7.04e-06]
[1772810817046,6.578,1991.7,1991.4,7.04e-06]
[1772810817650,10.23713191,1991.7,1991.4,7.04e-06]
[1772810818051,3.55461993,1991.6,1991.4,7.04e-06]
[1772810818644,3.79694265,1991.5,1990.8,5.47804656]
[1772810819048,3.79772515,1991.1,1990.0,5.50995063]
[1772810819251,10.12561515,1991.0,1990.0,5.50995063]
[1772810819753,3.53787924,1990.9,1990.0,5.51636508]
[1772810820648,6.579,1990.8,1990.0,5.51636508]
[1772810820847,3.52440232,1991.1,1990.0,5.51636508]
[1772810821054,6.579,1991.1,1990.0,5.51636508]
[1772810821248,10.10412945,1991.1,1990.0,5.51636508]
[1772810821449,6.579,1991.2,1990.0,5.51636508]
[1772810821648,6.579,1991.5,1990.2,5.50655454]
[1772810822248,10.0768707,1991.5,1990.2,5.50655454]
[1772810822450,6.579,1991.6,1990.4,5.50655454]
[1772810822650,0.00605789,1992.1,1990.6,5.50655454]
[1772810822849,0.00605789,1992.1,1991.0,5.50655454]
[1772810823044,3.49592158,1992.1,1991.0,5.50655454]
[1772810823246,3.74085369,1992.0,1991.0,5.50655454]
[1772810824249,3.74085369,1992.0,1990.4,5.50655454]
[1772810824447,3.71470399,1991.8,1990.4,5.50655454]
[1772810824652,0.25102,1991.7,1990.4,5.50655454]
[1772810824852,3.71470399,1991.4,1990.4,5.50655454]
[1772810825046,6.02557338,1991.6,1990.1,5.50655454]
[1772810825047,3.71526827,1991.0,1990.1,5.50655454]
[1772810825551,6.579,1991.1,1990.1,5.50655454]
[1772810825754,3.70653669,1991.0,1990.1,5.50655454]
[1772810825950,3.95764669,1991.0,1990.1,5.50655454]
[1772810826351,3.95764669,1991.0,1990.0,0.00641445]
[1772810826545,3.75073218,1990.5,1989.3,5.50655454]
[1772810826849,0.25117,1990.6,1989.3,5.50655454]
[1772810826850,3.75073218,1990.3,1989.3,5.50655454]
[1772810827655,4.0962303,1990.3,1989.3,5.5110334]
[1772810828051,6.58,1990.2,1989.3,5.5110334]
[1772810828249,3.77463627,1990.1,1989.3,5.5110334]
[1772810829056,6.58,1990.0,1989.3,5.5110334]
[1772810829254,10.34643657,1990.0,1989.3,5.5110334]
[1772810829655,6.58,1990.0,1989.3,5.5110334]
[1772810829850,10.33774616,1990.0,1989.3,5.5110334]
[1772810830058,3.75774616,1990.0,1989.3,5.5110334]
[1772810830357,6.58,1989.9,1989.3,5.5110334]
[1772810830658,3.87589669,1989.8,1989.3,0.00447886]
[1772810831455,3.87589669,1989.8,1989.3,5.5110334]
[1772810831656,3.87133452,1990.3,1989.3,5.5110334]
[1772810831960,6.581,1990.2,1989.3,5.5110334]
[1772810832258,0.00370942,1990.3,1989.3,5.5110334]
[1772810834061,6.581,1990.5,1989.3,5.5110334]
[1772810834254,4.25691239,1990.8,1989.3,5.5110334]
[1772810834255,6.581,1990.6,1989.3,5.5110334]
[1772810835158,6.58730775,1990.6,1989.3,5.5110334]
[1772810835359,0.00630775,1990.6,1989.5,5.50655454]
[1772810835552,2.60863841,1990.9,1989.7,5.50655454]
[1772810836564,2.61313398,1990.9,1989.7,5.50655454]
[1772810837255,3.98020252,1990.8,1989.7,5.50655454]
[1772810837457,2.86426398,1990.9,1989.7,5.50655454]
[1772810837656,2.61313398,1990.9,1989.9,5.50655454]
[1772810837859,6.581,1991.3,1990.1,5.50655454]
[1772810838558,12.40546016,1991.3,1990.1,5.50655454]
[1772810838959,5.82446016,1991.2,1990.1,5.50655454]
[1772810839556,6.58642284,1991.3,1990.1,5.50655454]
[1772810839752,12.410883,1991.3,1990.1,5.50655454]
[1772810839961,5.82446016,1991.2,1990.1,5.50655454]
[1772810840356,6.58642284,1991.3,1990.1,5.50655454]
[1772810840357,6.581,1991.1,1990.1,5.50655454]
[1772810840958,5.829883,1991.3,1990.3,5.50655454]
[1772810841166,12.409883,1991.3,1990.3,5.50655454]
[1772810841462,0.00542284,1991.3,1990.3,5.50655454]
[1772810842754,6.58,1991.7,1990.5,5.50655454]
[1772810843265,5.82446016,1991.8,1990.5,5.50655454]
[1772810843563,6.58,1992.3,1990.7,5.50655454]
[1772810843762,6.58426289,1992.3,1990.7,5.51205173]
[1772810844067,12.40872305,1992.3,1990.7,5.51205173]
[1772810844261,5.82446016,1992.2,1990.7,5.51205173]
[1772810844655,5.82446016,1992.2,1990.9,5.50655454]
[1772810844964,5.82446016,1992.0,1990.9,5.50655454]
[1772810846154,12.40346016,1992.0,1990.9,5.50655454]
[1772810846965,0.25101,1991.8,1990.9,5.50655454]
[1772810847164,5.82446016,1991.7,1990.9,5.50655454]
[1772810848367,5.82446016,1991.9,1990.9,5.50655454]
[1772810848562,12.40346016,1991.8,1990.9,5.50655454]
[1772810848963,5.82446016,1991.7,1990.9,5.50655454]
[1772810849464,0.25104,1991.6,1990.9,5.50655454]
[1772810850569,6.07550016,1991.6,1990.7,5.51205173]
[1772810850959,6.07550016,1991.6,1990.7,0.00549719]
[1772810851461,12.65450016,1991.6,1990.7,5.51205173]
[1772810851663,5.4323577,1991.9,1990.7,5.51205173]
[1772810851864,6.579,1992.0,1990.7,5.51205173]
[1772810852263,12.0113577,1992.1,1990.7,5.76319173]
[1772810852669,5.4323577,1992.1,1990.7,5.76319173]
[1772810855373,5.6833277,1992.1,1990.7,5.76319173]
[1772810859376,0.00426289,1992.3,1990.7,5.51205173]
[1772810859377,5.4323577,1991.7,1990.7,5.51205173]
[1772810859969,5.4323577,1991.5,1990.7,5.51205173]
[1772810860169,12.0103577,1991.8,1990.7,5.51205173]
[1772810860971,5.6833977,1991.7,1990.7,5.51205173]
[1772810862378,5.4323577,1991.6,1990.7,5.51205173]
[1772810863175,5.6834077,1991.5,1990.7,5.51205173]
[1772810863480,5.4323577,1991.7,1990.7,5.51205173]
[1772810864079,5.4323577,1991.8,1990.7,5.51205173]
[1772810864277,5.4323577,1991.6,1990.7,5.51205173]
[1772810864678,5.6834077,1991.5,1990.7,5.51205173]
[1772810865479,5.4323577,1991.8,1990.7,5.51205173]
[1772810866078,5.4323577,1991.6,1990.7,5.51205173]
[1772810866477,5.4323577,1991.4,1990.7,5.51205173]
[1772810867580,0.25105,1991.5,1990.7,5.51205173]
[1772810868181,5.6834077,1991.5,1990.7,5.51205173]
[1772810869481,5.6834077,1991.5,1990.3,10.48827581]
[1772810869482,5.4323577,1991.1,1990.3,5.86394365]
[1772810869678,5.4323577,1990.9,1989.8,5.86394365]
[1772810870176,5.4323577,1990.7,1989.8,5.86394365]
[1772810870376,5.4323577,1990.5,1989.8,5.86394365]
[1772810870775,5.43816362,1990.5,1989.8,0.00366206]
[1772810871175,5.43816362,1990.5,1989.8,5.86760571]
[1772810872477,0.00580592,1990.5,1989.8,5.86760571]
[1772810875181,6.58,1990.8,1989.8,6.11885571]
[1772810875487,6.58,1991.3,1990.0,5.39122135]
[1772810875688,6.58,1991.3,1990.2,5.39122135]
[1772810876283,0.0057194,1991.3,1990.2,5.39122135]
[1772810876885,4.18355063,1991.3,1990.2,5.39122135]
[1772810877287,0.0057194,1991.3,1990.2,5.39122135]
[1772810878692,0.0057194,1991.3,1990.4,5.39122135]
[1772810879783,4.42459498,1991.9,1990.8,5.39122135]
[1772810880991,4.42667097,1991.9,1990.8,5.39122135]
[1772810881293,0.00207599,1991.9,1990.8,5.39122135]
[1772810881488,4.1436682,1991.9,1990.8,5.39122135]
[1772810881885,4.14451049,1991.7,1990.8,5.39122135]
[1772810882390,10.85669419,1991.9,1990.8,5.39122135]
[1772810882590,4.27669419,1991.9,1990.8,5.39122135]
[1772810882793,4.52770419,1991.9,1990.8,5.39122135]
[1772810882986,4.26803934,1991.4,1990.4,5.29406179]
[1772810883885,4.26014613,1991.3,1990.4,5.29406179]
[1772810884491,4.49264364,1991.1,1990.0,5.29406179]
[1772810884697,4.49264364,1990.9,1990.0,5.29406179]
[1772810884900,4.49264364,1990.8,1990.0,5.29406179]
[1772810886894,4.49264364,1990.8,1989.8,0.00366206]
[1772810886895,4.49681367,1991.4,1990.2,5.29406179]
[1772810887095,4.49681367,1991.4,1990.4,5.29406179]
[1772810887289,4.49681367,1991.4,1990.5,5.29406179]
[1772810887598,4.49681367,1991.4,1990.6,5.29406179]
[1772810887798,4.49001701,1991.8,1990.6,5.29406179]
[1772810888094,4.49001701,1991.8,1990.7,5.29406179]
[1772810888595,0.00207599,1991.9,1990.9,5.29406179]
[1772810889194,4.45389631,1991.9,1990.9,5.29406179]
[1772810889899,0.00207599,1991.9,1990.9,5.29406179]
[1772810890796,4.49806677,1991.9,1990.9,5.29406179]
[1772810891199,0.00207599,1991.9,1990.9,5.29406179]
[1772810891394,4.49911357,1991.9,1990.9,5.29406179]
[1772810892105,2.55642762,1992.4,1991.1,5.29406179]
[1772810892301,4.53987015,1992.3,1991.1,5.29406179]
[1772810893201,4.27463957,1991.8,1991.1,5.29406179]
[1772810894201,6.579,1991.9,1990.3,10.48827581]
[1772810894202,4.5865922,1991.7,1990.7,5.29406179]
[1772810895211,4.32126091,1991.2,1990.3,5.29406179]
[1772810895407,0.25108,1991.3,1990.3,5.29406179]
[1772810895408,4.32126091,1991.0,1990.3,5.29406179]
[1772810895606,4.30466398,1990.8,1990.0,5.29406179]
[1772810896004,4.22702637,1990.6,1990.0,5.29406179]
[1772810897201,4.21302547,1990.4,1989.8,0.00366206]
[1772810897406,0.25118,1990.5,1989.8,0.00366206]
[1772810897407,0.25118,1990.5,1989.8,5.29772385]
[1772810897711,4.44782941,1990.5,1989.8,0.00366206]
[1772810899416,4.7928796,1990.5,1989.8,0.00366206]
[1772810899805,4.7928796,1990.5,1989.2,5.29406179]
[1772810900410,4.44782941,1990.5,1989.2,5.29406179]
[1772810900607,4.12375815,1990.9,1989.3,5.29406179]
[1772810900821,4.12375815,1990.7,1989.3,5.29959455]
[1772810901017,4.12375815,1990.7,1989.4,5.29406179]
[1772810901212,4.12375815,1990.7,1989.5,5.29406179]
[1772810901820,0.00366206,1990.9,1989.6,16.12210323]
[1772810902115,0.00366206,1990.9,1989.9,5.29406179]
[1772810902313,4.38816511,1990.8,1989.9,5.29406179]
[1772810902813,0.00366206,1990.9,1989.9,5.29406179]
[1772810903214,4.37839825,1990.9,1989.9,5.29406179]
[1772810903519,4.35905991,1990.5,1989.7,5.29406179]
[1772810904710,6.581,1990.7,1989.7,5.29406179]
[1772810904913,10.70847619,1990.7,1989.7,5.29406179]
[1772810906615,0.00366206,1990.9,1989.8,7.85458553]
[1772810906921,0.00366206,1990.9,1990.0,5.29406179]
[1772810907921,0.00366206,1990.9,1990.2,5.29406179]
[1772810908516,4.07804658,1990.7,1989.8,13.14864732]
[1772810908717,4.07804658,1990.7,1989.9,5.29406179]
[1772810909219,4.33144784,1990.6,1989.9,5.29406179]
[1772810909420,4.33144784,1990.6,1989.3,10.37153276]
[1772810909421,4.31636862,1990.4,1989.5,5.29406179]
[1772810911319,0.25119,1990.4,1989.5,5.29406179]
[1772810912222,4.28862245,1990.5,1989.5,5.29406179]
[1772810913621,4.00993238,1990.7,1989.5,5.29406179]
[1772810913922,4.2556363,1990.5,1989.5,5.29406179]
[1772810915020,10.8366363,1990.5,1989.5,5.29406179]
[1772810915820,3.9773158,1990.4,1989.5,5.29406179]
[1772810916421,6.83219,1990.5,1989.5,5.29406179]
[1772810916622,10.80164829,1990.5,1989.5,5.29406179]
[1772810917125,3.97161705,1990.4,1989.5,5.29406179]
[1772810917423,6.83219,1990.5,1989.5,5.29406179]
[1772810917624,10.7893817,1990.5,1989.5,5.29406179]
[1772810918626,4.18664249,1990.8,1989.6,5.11575438]
[1772810919323,4.18883582,1990.4,1989.6,5.11575438]
[1772810920625,0.25119,1990.4,1989.6,5.11575438]
[1772810920819,3.96086546,1990.6,1989.6,5.11575438]
[1772810922523,4.18407113,1990.8,1989.6,5.11575438]
[1772810922719,10.76507113,1990.8,1989.7,5.11575438]
[1772810923129,10.76507113,1990.8,1989.8,5.11575438]
[1772810923331,3.93496508,1990.7,1989.8,5.11575438]
[1772810923530,3.92473799,1990.9,1990.0,5.11575438]
[1772810924431,4.1644523,1990.8,1990.0,5.11575438]
[1772810927537,3.94965465,1990.4,1989.8,5.11575438]
[1772810927839,10.5200348,1990.8,1989.8,5.11575438]
[1772810928133,3.9400348,1990.7,1989.8,5.11575438]
[1772810928727,4.1911948,1990.7,1989.8,5.11575438]
[1772810931835,4.14224502,1990.4,1989.8,5.11575438]
[1772810932036,3.89104502,1989.9,1989.3,0.00553276]
[1772810932434,3.89104502,1989.9,1989.3,5.12128714]
[1772810932435,0.25126,1989.8,1989.3,5.12128714]
[1772810932739,2.09781166,1989.8,1989.3,5.12128714]
[1772810933040,2.09781166,1989.8,1989.3,0.00553276]
[1772810933240,2.09781166,1989.8,1989.1,5.11575438]
[1772810933642,2.09781166,1989.8,1988.9,5.11575438]
[1772810934342,2.09781166,1989.8,1988.9,5.11935162]
[1772810938648,8.28224971,1989.7,1988.9,5.11935162]
[1772810939349,1.7029154,1989.6,1988.9,5.11935162]
[1772810939546,6.581,1989.7,1988.9,5.11935162]
[1772810939743,0.25126,1989.8,1988.9,5.11935162]
[1772810940146,1.94176325,1989.4,1988.9,5.11935162]
[1772810940345,0.00383442,1989.4,1988.9,5.11935162]
[1772810940647,1.69044325,1989.8,1988.9,5.11935162]
[1772810941044,1.68460235,1989.6,1988.9,5.11935162]
[1772810941244,1.93590235,1989.5,1988.9,0.00359724]
[1772810941444,1.94126275,1989.5,1988.9,5.44989031]
[1772810941846,2.39460776,1989.3,1988.0,4.9932342]
[1772810942450,0.2566604,1989.5,1988.0,4.9932342]
[1772810942849,0.2566604,1989.5,1988.0,4.99690072]
[1772810943554,0.2566604,1989.5,1988.2,4.9932342]
[1772810943752,2.66404508,1989.5,1988.2,4.9932342]
[1772810944148,2.66581737,1989.1,1988.2,4.9932342]
[1772810945548,0.0053604,1989.5,1988.2,4.9932342]
[1772810945549,2.39957928,1989.5,1988.2,4.9932342]
[1772810945953,0.0053604,1989.5,1988.2,4.9932342]
[1772810946654,2.3989334,1989.9,1988.4,4.9932342]
[1772810947352,0.25126,1989.8,1988.4,4.9932342]
[1772810947549,0.25485724,1989.8,1988.4,5.2446642]
[1772810947754,0.00359724,1989.8,1988.7,4.9932342]
[1772810948049,2.34606223,1989.8,1988.7,4.9932342]
[1772810948256,2.59374499,1989.7,1988.7,4.9932342]
[1772810949151,2.5845582,1989.3,1988.7,4.9932342]
[1772810949657,2.5845582,1989.3,1988.2,4.9932342]
[1772810950146,0.25133,1989.3,1988.2,4.9932342]
[1772810951056,2.56820807,1989.3,1988.2,4.9932342]
[1772810951257,0.25133,1989.3,1988.2,4.9932342]
[1772810953158,2.52555099,1989.3,1988.2,4.9932342]
[1772810955261,2.509613,1989.7,1988.4,4.9932342]
[1772810955559,2.49684598,1989.8,1988.4,4.9932342]
[1772810957759,2.45909425,1989.3,1988.4,4.9932342]
[1772810959560,0.00359724,1989.8,1988.4,4.9932342]
[1772810959561,2.16456059,1989.5,1988.4,4.9932342]
[1772810960063,2.43329447,1989.7,1988.4,4.9932342]
[1772810961554,0.25133,1989.4,1988.4,4.9932342]
[1772810961758,2.15255187,1989.3,1988.4,4.9932342]
[1772810962562,0.25133,1989.4,1988.4,4.9932342]
[1772810962757,2.15390114,1989.7,1988.4,4.9932342]
[1772810963561,2.39175508,1989.6,1988.4,4.9932342]
[1772810966465,2.2778547,1989.1,1988.4,4.9932342]
[1772810966666,2.2778547,1989.1,1988.2,4.9932342]
[1772810967166,2.27996828,1988.9,1988.2,4.9932342]
[1772810967361,6.581,1989.2,1987.3,13.34559989]
[1772810967362,2.02858828,1988.4,1987.7,4.9932342]
[1772810967666,2.26505431,1988.5,1987.7,4.9932342]
[1772810968465,2.26927895,1988.5,1987.7,4.99758279]
[1772810969268,2.26927895,1988.5,1987.7,0.00434859]
[1772810969468,2.26927895,1988.5,1987.5,4.9932342]
[1772810969771,8.85027895,1988.5,1987.5,4.9932342]
[1772810969966,1.78613585,1988.4,1987.5,4.9932342]
[1772810970468,1.78613585,1988.4,1987.5,4.99861449]
[1772810971262,6.58622464,1988.5,1987.5,4.99861449]
[1772810971768,8.19941816,1988.5,1987.5,4.99861449]
[1772810971967,1.61741816,1988.5,1987.5,4.99861449]
[1772810972876,0.00422464,1988.5,1987.5,4.99861449]
[1772810973571,1.6971977,1988.5,1987.5,4.99861449]
[1772810974366,0.25137,1989.0,1987.5,4.99861449]
[1772810974567,6.582,1989.2,1987.7,5.19001609]
[1772810974771,1.69422452,1989.3,1987.7,5.19001609]
[1772810975277,1.69422452,1989.3,1987.9,5.19001609]
[1772810975470,1.93395183,1989.5,1988.0,5.19001609]
[1772810975671,1.93989275,1989.5,1988.0,5.19001609]
[1772810976073,1.6803371,1989.0,1988.0,5.19001609]
[1772810976473,0.25136,1989.1,1988.0,5.19001609]
[1772810976978,1.91763093,1989.1,1988.0,5.19001609]
[1772810979480,6.582,1989.3,1988.0,5.19001609]
[1772810979481,1.61586212,1989.3,1988.0,5.19001609]
[1772810979676,1.62180304,1989.5,1988.0,5.19001609]
[1772810980476,0.00594092,1989.5,1988.2,5.19001609]
[1772810980685,1.57236205,1990.1,1988.4,5.19001609]
[1772810981086,1.57462001,1990.3,1988.8,5.19001609]
[1772810981382,4.20843797,1990.4,1989.2,5.19001609]
[1772810981574,1.8126578,1990.3,1989.2,5.19507141]
[1772810981980,0.25126,1989.9,1989.2,5.19507141]
[1772810982184,1.5614578,1990.3,1989.2,5.19507141]
[1772810982185,3.49476806,1989.8,1989.2,0.00505532]
[1772810982384,3.49476806,1989.7,1989.2,0.00505532]
[1772810982581,3.49476806,1989.7,1988.5,5.19001609]
[1772810982582,3.74604806,1989.7,1988.5,5.19001609]
[1772810983480,3.47594012,1989.4,1988.5,5.19001609]
[1772810983679,3.47594012,1989.4,1988.5,5.19366823]
[1772810986386,3.74309745,1989.2,1988.5,5.19366823]
[1772810986682,3.73006109,1989.5,1988.5,5.19366823]
[1772810987184,3.72940715,1989.9,1988.6,5.19001609]
[1772810987584,3.98066715,1989.9,1988.6,5.19001609]
[1772810988284,0.25131,1989.5,1988.6,5.19001609]
[1772810988486,3.71064963,1989.4,1988.6,5.19001609]
[1772810990088,3.69045546,1989.8,1988.6,5.19001609]
[1772810990589,3.92892972,1990.0,1988.6,5.19001609]
[1772810991086,3.92892972,1990.0,1988.8,5.19001609]
[1772810991384,3.67703678,1990.2,1988.8,5.19001609]
[1772810991595,3.66586523,1990.4,1989.0,5.19001609]
[1772810992284,3.89981832,1990.3,1989.0,5.19001609]
[1772810992489,3.89981832,1990.3,1989.1,5.19001609]
[1772810992990,0.2512,1990.3,1989.1,5.19001609]
[1772810994394,0.00144679,1990.4,1989.3,7.92089487]
[1772810994593,0.00144679,1990.4,1989.4,5.19001609]
[1772810994782,3.59693123,1990.4,1989.4,5.19001609]
[1772810995489,0.00144679,1990.4,1989.4,5.19001609]
[1772810997583,2.59918035,1990.9,1989.7,2.73087878]
[1772810997886,3.58454658,1990.8,1989.8,4.77727838]
[1772810998682,0.00505532,1990.8,1989.8,4.77727838]
[1772810999983,3.34949085,1990.7,1989.9,4.77727838]
[1772811000185,3.34949085,1990.7,1989.9,4.7830887]
[1772811000385,0.25115,1990.7,1989.9,4.7830887]
[1772811000586,0.00505532,1990.8,1989.9,4.7830887]
[1772811000786,3.09155421,1990.8,1989.9,4.7830887]
[1772811000985,3.34270421,1990.8,1989.9,4.7830887]
[1772811001787,3.09155421,1990.8,1989.9,4.7830887]
[1772811001988,0.00505532,1990.8,1989.9,4.7830887]
[1772811002186,2.93185132,1990.8,1989.9,4.7830887]
[1772811002589,3.25279536,1991.3,1989.9,4.7830887]
[1772811002789,2.9200956,1990.9,1989.9,4.7830887]
[1772811003392,2.90888317,1991.2,1989.9,4.7830887]
[1772811003599,2.90888317,1991.4,1989.9,4.7830887]
[1772811003894,2.90888317,1991.8,1990.2,4.81359221]
[1772811004093,2.99176673,1992.0,1990.6,4.81359221]
[1772811004291,3.33932281,1992.0,1990.6,4.81359221]
[1772811004496,2.72916265,1991.5,1990.6,4.81359221]
[1772811005001,2.72916265,1991.5,1989.9,0.00581032]
[1772811005002,0.25109,1991.2,1990.0,4.81359221]
[1772811005397,2.72946557,1991.4,1990.0,4.81359221]
[1772811005605,2.98053557,1991.4,1990.0,4.81359221]
[1772811007100,2.94079853,1991.0,1990.0,4.81359221]
[1772811007405,0.25112,1991.0,1990.0,4.81359221]
[1772811008402,2.70667129,1991.5,1990.0,4.81359221]
[1772811008600,2.9464241,1991.4,1990.0,4.81359221]
[1772811010106,3.00834349,1991.0,1990.0,4.81359221]
[1772811012111,2.71079419,1991.4,1990.0,4.81359221]
[1772811012406,0.25105,1991.5,1990.3,4.81359221]
[1772811012609,2.94633649,1991.5,1990.3,4.81359221]
[1772811012908,2.69528649,1991.7,1990.3,4.81359221]
[1772811013304,2.69559398,1991.9,1990.3,4.81359221]
[1772811013508,2.69559398,1991.9,1990.5,4.81359221]
[1772811013709,2.9311946,1991.8,1990.5,4.81359221]
[1772811014904,2.86416378,1991.4,1990.5,4.81359221]
[1772811015212,0.25107,1991.4,1990.5,4.81359221]
[1772811015509,2.59792038,1991.8,1990.5,4.81359221]
[1772811016110,2.59711988,1991.6,1990.5,4.81359221]
[1772811016414,0.25102,1991.7,1990.5,4.81359221]
[1772811016712,2.83316118,1991.7,1990.5,4.81359221]
[1772811017205,0.25102,1991.7,1990.5,4.81359221]
[1772811018214,2.32138296,1992.1,1990.5,4.81359221]
[1772811018407,2.32138296,1992.1,1990.7,4.81359221]
[1772811018607,0.25097,1992.2,1990.9,4.81359221]
[1772811018810,2.30655942,1992.4,1991.1,4.81359221]
[1772811019112,2.55088073,1992.5,1991.1,4.81359221]
[1772811019113,2.55088073,1992.5,1991.2,4.81359221]
[1772811019909,2.55901824,1992.4,1991.2,4.81359221]
[1772811021711,0.25094,1992.4,1991.2,4.81359221]
[1772811022211,4.83065634,1992.5,1991.2,4.81359221]
[1772811022212,2.55088073,1992.5,1991.2,4.81359221]
[1772811022515,8.91638387,1992.8,1991.2,4.81359221]
[1772811022715,0.25088,1992.9,1991.5,4.81359221]
[1772811022910,0.25088,1992.9,1991.7,4.81359221]
[1772811023111,0.25093,1992.5,1991.7,4.81359221]
[1772811023307,0.33430297,1993.3,1991.9,4.81359221]
[1772811023308,2.32363318,1993.3,1991.9,4.81359221]
[1772811023507,0.2508,1993.5,1992.0,4.81359221]
[1772811024108,0.2508,1993.5,1992.1,4.81359221]
[1772811024109,2.52050414,1993.5,1992.1,4.81359221]
[1772811024411,0.2508,1993.5,1992.1,4.81359221]
[1772811024612,2.25560136,1993.9,1992.3,4.81359221]
[1772811024815,0.25074,1994.0,1992.3,4.81359221]
[1772811025312,0.25082,1993.4,1992.5,4.81359221]
[1772811026312,2.2973648,1993.4,1992.5,4.81359221]
[1772811028214,2.29632756,1994.4,1993.0,4.81359221]
[1772811028419,2.29632756,1994.4,1993.0,4.81746872]
[1772811029313,2.28352198,1994.4,1993.0,4.81746872]
[1772811029514,0.25075,1994.0,1993.0,4.81746872]
[1772811029708,2.26993464,1994.0,1993.0,4.81746872]
[1772811030419,2.23907849,1994.0,1993.0,4.81746872]
[1772811033421,2.23406671,1994.3,1993.0,4.81746872]
[1772811033919,2.2210459,1993.8,1993.0,4.81746872]
[1772811034124,1.52195373,1994.2,1993.0,4.81746872]
[1772811034626,1.50891481,1994.7,1993.1,4.68286155]
[1772811034924,1.50891481,1994.5,1993.1,4.68286155]
[1772811035526,0.25066,1994.6,1993.1,4.68286155]
[1772811036027,1.69430243,1994.6,1993.1,4.68286155]
[1772811037722,1.41956757,1994.9,1993.4,2.73087878]
[1772811037924,1.67018757,1994.9,1993.5,4.68286155]
[1772811038419,1.69628563,1994.5,1993.5,4.68286155]
[1772811039419,1.68509383,1994.1,1993.5,4.68286155]
[1772811039822,1.68509383,1994.1,1993.3,4.68286155]
[1772811040125,1.68509383,1994.1,1993.1,4.68286155]
[1772811040530,1.65008555,1993.7,1993.1,4.68286155]
[1772811041323,1.65008555,1993.7,1993.0,0.00387651]
[1772811041523,1.63530721,1993.3,1992.6,4.68286155]